[Event "Rapid Tournament (RAP)"]
[Site "Biel, Switzerland"]
[Date "2026.07.12"]
[Round "8.19"]
[White "Arntz, Christoph"]
[Black "Ling, Chenxuan"]
[Result "0-1"]
[TimeControl "15 + 5"]
[WhiteTitle "-"]
[BlackTitle "-"]
[WhiteFideId "16257723"]
[BlackFideId "30983118"]
[WhiteElo "1999"]
[BlackElo "2077"]

1. f4 {[%emt 00:01:53]} d5 {[%emt 00:00:05]} 2. Nf3 Nf6 {[%emt 00:00:02]} 3. e3
{[%emt 00:00:03]} c5 {[%emt 00:00:03]} 4. d4 {[%emt 00:00:02]} Nc6 {[%emt
00:00:06]} 5. c3 {[%emt 00:00:05]} e6 {[%emt 00:00:12]} 6. Nbd2 {[%clk
00:15:12]} {[%emt 00:00:07]} Bd6 {[%clk 00:15:05]} 7. Ne5 {[%clk 00:15:03]}
{[%emt 00:00:19]} Bd7 {[%clk 00:15:03]} {[%emt 00:00:07]} 8. Bd3 {[%clk
00:14:59]} {[%emt 00:00:08]} Rc8 {[%clk 00:15:04]} {[%emt 00:00:05]} 9. O-O
{[%clk 00:14:56]} {[%emt 00:00:08]} O-O {[%clk 00:15:07]} {[%emt 00:00:03]} 10.
Qf3 {[%clk 00:14:31]} {[%emt 00:00:29]} Ne8 {[%clk 00:14:41]} {[%emt 00:00:31]}
11. Qh3 {[%clk 00:13:34]} {[%emt 00:01:02]} f5 {[%clk 00:14:42]} {[%emt
00:00:04]} 12. g4 {[%clk 00:12:52]} {[%emt 00:00:47]} Ne7 {[%clk 00:14:27]}
{[%emt 00:00:20]} 13. Ndf3 {[%clk 00:12:19]} {[%emt 00:00:38]} Nf6 {[%clk
00:14:09]} {[%emt 00:00:23]} 14. gxf5 {[%clk 00:11:37]} {[%emt 00:00:47]} exf5
{[%clk 00:14:03]} {[%emt 00:00:10]} 15. Rf2 {[%clk 00:11:12]} {[%emt 00:00:32]}
Ne4 {[%clk 00:13:07]} {[%emt 00:01:01]} 16. Rg2 {[%clk 00:10:55]} {[%emt
00:00:21]} Rf6 {[%clk 00:12:50]} {[%emt 00:00:22]} 17. Nxd7 {[%clk 00:08:51]}
{[%emt 00:02:09]} Qxd7 {[%clk 00:12:52]} {[%emt 00:00:03]} 18. Ne5 {[%clk
00:08:34]} {[%emt 00:00:21]} Qe6 {[%clk 00:12:45]} {[%emt 00:00:13]} 19. Qf3
{[%clk 00:08:21]} {[%emt 00:00:18]} c4 {[%clk 00:12:33]} {[%emt 00:00:18]} 20.
Bxe4 {[%clk 00:08:10]} {[%emt 00:00:15]} fxe4 {[%clk 00:12:30]} {[%emt
00:00:08]} 21. Qg4 {[%clk 00:07:04]} {[%emt 00:01:11]} Nf5 {[%clk 00:12:30]}
{[%emt 00:00:05]} 22. Bd2 {[%clk 00:06:58]} {[%emt 00:00:12]} Bxe5 {[%clk
00:12:33]} {[%emt 00:00:02]} 23. dxe5 {[%clk 00:06:29]} {[%emt 00:00:34]} Rg6
{[%clk 00:12:36]} {[%emt 00:00:02]} 24. Qe2 {[%clk 00:06:33]} {[%emt 00:00:01]}
Rxg2+ {[%clk 00:12:31]} {[%emt 00:00:10]} 25. Qxg2 {[%clk 00:06:29]} {[%emt
00:00:08]} Nh4 {[%clk 00:12:35]} {[%emt 00:00:01]} 26. Qf2 {[%clk 00:06:15]}
{[%emt 00:00:19]} Nf3+ {[%clk 00:12:39]} 27. Kh1 {[%clk 00:06:13]} {[%emt
00:00:08]} Rf8 {[%clk 00:12:42]} {[%emt 00:00:02]} 28. Be1 {[%clk 00:06:06]}
{[%emt 00:00:11]} Rf5 {[%clk 00:12:38]} {[%emt 00:00:09]} 29. Qe2 {[%clk
00:06:06]} {[%emt 00:00:05]} Rh5 {[%clk 00:12:33]} {[%emt 00:00:11]} 30. Bg3
{[%clk 00:06:08]} {[%emt 00:00:03]} Rh3 {[%clk 00:12:37]} 31. Kg2 {[%clk
00:05:15]} {[%emt 00:00:58]} h5 {[%clk 00:12:01]} {[%emt 00:00:41]} 32. Rh1
{[%clk 00:05:03]} {[%emt 00:00:16]} h4 {[%clk 00:11:56]} {[%emt 00:00:11]} 33.
Be1 {[%clk 00:04:40]} {[%emt 00:00:27]} Rxh2+ {[%clk 00:11:10]} {[%emt
00:00:51]} 34. Rxh2 {[%clk 00:04:31]} {[%emt 00:00:15]} Qg4+ {[%clk 00:11:15]}
35. Bg3 {[%clk 00:03:57]} {[%emt 00:00:39]} Qxg3+ {[%clk 00:11:18]} {[%emt
00:00:02]} 0-1

[Event "Rapid Tournament (RAP)"]
[Site "Biel, Switzerland"]
[Date "2026.07.12"]
[Round "8.20"]
[White "Hashem, Khaled"]
[Black "Tkhoruk, Roman"]
[Result "1/2-1/2"]
[TimeControl "15 + 5"]
[WhiteTitle "-"]
[BlackTitle "-"]
[WhiteFideId "10300201"]
[BlackFideId "34161589"]
[WhiteElo "1926"]
[BlackElo "2076"]

1. d4 {[%clk 00:15:08]} {[%emt 00:00:02]} Nf6 {[%clk 00:15:07]} {[%emt
00:00:04]} 2. Nf3 {[%clk 00:15:11]} d5 {[%clk 00:15:06]} {[%emt 00:00:05]} 3.
g3 {[%clk 00:15:15]} {[%emt 00:00:01]} Bf5 {[%clk 00:15:05]} {[%emt 00:00:07]}
4. Bg2 {[%clk 00:15:18]} {[%emt 00:00:02]} c6 {[%clk 00:15:08]} {[%emt
00:00:02]} 5. O-O {[%clk 00:15:22]} {[%emt 00:00:01]} e6 {[%clk 00:15:12]}
{[%emt 00:00:02]} 6. c4 {[%clk 00:15:26]} {[%emt 00:00:01]} Be7 {[%clk
00:15:13]} {[%emt 00:00:02]} 7. Nc3 {[%clk 00:15:30]} O-O {[%clk 00:15:10]}
{[%emt 00:00:09]} 8. h3 {[%clk 00:15:25]} {[%emt 00:00:10]} h6 {[%clk
00:15:11]} {[%emt 00:00:04]} 9. b3 {[%clk 00:12:53]} {[%emt 00:02:37]} Nbd7
{[%clk 00:14:56]} {[%emt 00:00:20]} 10. Bb2 {[%clk 00:12:57]} {[%emt 00:00:02]}
Ne4 {[%clk 00:14:12]} {[%emt 00:00:49]} 11. Nd2 {[%clk 00:11:37]} {[%emt
00:01:25]} Nxc3 {[%clk 00:13:59]} {[%emt 00:00:18]} 12. Bxc3 {[%clk 00:11:40]}
Nf6 {[%clk 00:13:51]} {[%emt 00:00:13]} 13. Re1 {[%clk 00:11:36]} {[%emt
00:00:10]} Ne4 {[%clk 00:13:46]} {[%emt 00:00:11]} 14. Nxe4 {[%clk 00:11:01]}
{[%emt 00:00:39]} Bxe4 {[%clk 00:13:47]} {[%emt 00:00:04]} 15. Bxe4 {[%clk
00:08:00]} {[%emt 00:03:06]} dxe4 {[%clk 00:13:50]} {[%emt 00:00:02]} 16. e3
{[%clk 00:08:03]} {[%emt 00:00:02]} f5 {[%clk 00:13:44]} {[%emt 00:00:10]} 17.
Qd2 {[%clk 00:08:07]} {[%emt 00:00:01]} h5 {[%clk 00:13:40]} {[%emt 00:00:10]}
18. h4 {[%clk 00:07:56]} {[%emt 00:00:16]} Qd7 {[%clk 00:11:35]} {[%emt
00:02:10]} 19. Rad1 {[%clk 00:06:35]} {[%emt 00:01:26]} Rad8 {[%clk 00:11:38]}
{[%emt 00:00:02]} 20. Qe2 {[%clk 00:06:39]} g6 {[%clk 00:11:38]} {[%emt
00:00:05]} 21. Qb2 {[%clk 00:06:34]} {[%emt 00:00:10]} Bf6 {[%clk 00:11:39]}
{[%emt 00:00:04]} 22. a3 {[%clk 00:06:33]} {[%emt 00:00:06]} Qf7 {[%clk
00:11:39]} {[%emt 00:00:05]} 23. Kg2 {[%clk 00:06:00]} {[%emt 00:00:37]} Rd7
{[%clk 00:11:11]} {[%emt 00:00:33]} 24. Rd2 {[%clk 00:05:47]} {[%emt 00:00:19]}
Rfd8 {[%clk 00:11:02]} {[%emt 00:00:14]} 25. Red1 {[%clk 00:05:49]} {[%emt
00:00:02]} g5 {[%clk 00:10:11]} {[%emt 00:00:57]} 26. hxg5 {[%clk 00:05:53]}
{[%emt 00:00:01]} Bxg5 {[%clk 00:10:14]} {[%emt 00:00:02]} 27. Rh1 {[%clk
00:05:57]} Qg6 {[%clk 00:10:11]} {[%emt 00:00:08]} 28. Rh3 {[%clk 00:05:12]}
{[%emt 00:00:49]} Rh7 {[%clk 00:10:04]} {[%emt 00:00:13]} 29. Rd1 {[%clk
00:05:15]} {[%emt 00:00:02]} Rdd7 {[%clk 00:09:29]} {[%emt 00:00:40]} 30. Rdh1
{[%clk 00:05:18]} {[%emt 00:00:01]} h4 {[%clk 00:08:08]} {[%emt 00:01:27]} 31.
Rg1 {[%clk 00:02:14]} {[%emt 00:03:09]} Bf6 {[%clk 00:05:51]} {[%emt 00:02:21]}
32. Kf1 {[%clk 00:02:03]} {[%emt 00:00:16]} Rhg7 {[%clk 00:05:27]} {[%emt
00:00:30]} 33. d5 {[%clk 00:01:49]} {[%emt 00:00:18]} Qg4 {[%clk 00:04:53]}
{[%emt 00:00:40]} 34. Rxh4 {[%clk 00:00:40]} {[%emt 00:01:14]} Bxh4 {[%clk
00:04:43]} {[%emt 00:00:15]} 35. Bxg7 {[%clk 00:00:43]} {[%emt 00:00:01]} Rxg7
{[%clk 00:04:32]} {[%emt 00:00:17]} 36. Qxg7+ {[%clk 00:00:39]} {[%emt
00:00:09]} Kxg7 {[%clk 00:03:55]} {[%emt 00:00:41]} 37. gxh4 {[%clk 00:00:44]}
{[%emt 00:00:01]} Qxg1+ {[%clk 00:02:42]} {[%emt 00:01:19]} 38. Kxg1 {[%clk
00:00:48]} exd5 {[%clk 00:02:45]} {[%emt 00:00:02]} 39. cxd5 {[%clk 00:00:53]}
{[%emt 00:00:01]} cxd5 {[%clk 00:02:49]} {[%emt 00:00:01]} 40. Kg2 {[%clk
00:00:39]} {[%emt 00:00:19]} f4 {[%clk 00:01:38]} {[%emt 00:01:15]} 41. exf4
{[%clk 00:00:21]} {[%emt 00:00:23]} Kg6 {[%clk 00:01:40]} {[%emt 00:00:03]} 42.
Kf1 {[%clk 00:00:11]} {[%emt 00:00:15]} d4 {[%clk 00:01:18]} {[%emt 00:00:27]}
43. Ke2 {[%clk 00:00:16]} {[%emt 00:00:01]} Kf5 {[%clk 00:01:03]} {[%emt
00:00:19]} 44. h5 {[%clk 00:00:20]} Kf6 {[%clk 00:01:07]} {[%emt 00:00:01]} 45.
b4 {[%clk 00:00:16]} {[%emt 00:00:10]} b5 {[%clk 00:01:07]} {[%emt 00:00:05]}
46. Kd2 {[%clk 00:00:14]} {[%emt 00:00:07]} Kf5 {[%clk 00:01:08]} {[%emt
00:00:04]} 47. Ke2 {[%clk 00:00:17]} {[%emt 00:00:02]} Kf6 {[%clk 00:01:11]}
{[%emt 00:00:02]} 48. f3 {[%clk 00:00:12]} {[%emt 00:00:10]} e3 {[%clk
00:01:07]} {[%emt 00:00:10]} 49. Kd3 {[%clk 00:00:16]} Kf5 {[%clk 00:01:11]}
{[%emt 00:00:01]} 50. Ke2 {[%clk 00:00:20]} {[%emt 00:00:01]} Kf6 {[%clk
00:01:14]} 51. Kd3 {[%clk 00:00:24]} {[%emt 00:00:01]} 1/2-1/2

[Event "Rapid Tournament (RAP)"]
[Site "Biel, Switzerland"]
[Date "2026.07.12"]
[Round "8.21"]
[White "Tureshbayev, Anuar"]
[Black "Grzeskowiak, Antoni"]
[Result "1/2-1/2"]
[TimeControl "15 + 5"]
[WhiteTitle "-"]
[BlackTitle "-"]
[WhiteFideId "651081709"]
[BlackFideId "41855531"]
[WhiteElo "2246"]
[BlackElo "1844"]

1. e4 {[%clk 00:15:09]} {[%emt 00:00:01]} d6 {[%clk 00:15:09]} {[%emt
00:00:02]} 2. d4 {[%clk 00:15:08]} {[%emt 00:00:05]} Nf6 {[%clk 00:15:12]}
{[%emt 00:00:02]} 3. Bd3 {[%clk 00:15:12]} {[%emt 00:00:01]} g6 {[%clk
00:15:16]} {[%emt 00:00:02]} 4. f4 {[%clk 00:15:09]} {[%emt 00:00:08]} Bg7
{[%clk 00:15:17]} {[%emt 00:00:03]} 5. Nf3 {[%clk 00:15:13]} {[%emt 00:00:02]}
Nc6 {[%clk 00:14:45]} {[%emt 00:00:37]} 6. c3 {[%clk 00:15:11]} {[%emt
00:00:07]} O-O {[%clk 00:14:32]} {[%emt 00:00:17]} 7. O-O {[%clk 00:15:15]}
{[%emt 00:00:02]} a6 {[%clk 00:14:09]} {[%emt 00:00:28]} 8. h3 {[%clk
00:15:14]} {[%emt 00:00:06]} b5 {[%clk 00:14:08]} {[%emt 00:00:07]} 9. a4
{[%clk 00:15:16]} {[%emt 00:00:02]} bxa4 {[%clk 00:13:54]} {[%emt 00:00:19]} 10.
Rxa4 {[%clk 00:15:15]} {[%emt 00:00:06]} Bb7 {[%clk 00:13:45]} {[%emt
00:00:14]} 11. d5 {[%clk 00:15:16]} {[%emt 00:00:04]} Nb8 {[%clk 00:13:44]}
{[%emt 00:00:06]} 12. c4 {[%clk 00:15:19]} {[%emt 00:00:02]} Nbd7 {[%clk
00:13:48]} {[%emt 00:00:01]} 13. b4 {[%clk 00:15:21]} {[%emt 00:00:04]} a5
{[%clk 00:13:45]} {[%emt 00:00:08]} 14. Rxa5 {[%clk 00:15:20]} {[%emt
00:00:05]} Rxa5 {[%clk 00:13:42]} {[%emt 00:00:08]} 15. bxa5 {[%clk 00:15:24]}
Nc5 {[%clk 00:13:46]} {[%emt 00:00:02]} 16. Bc2 {[%clk 00:15:27]} Nfxe4 {[%clk
00:13:43]} {[%emt 00:00:08]} 17. Re1 {[%clk 00:15:31]} {[%emt 00:00:02]} Nc3
{[%clk 00:13:32]} {[%emt 00:00:16]} 18. Nxc3 {[%clk 00:15:32]} {[%emt
00:00:03]} Bxc3 {[%clk 00:13:35]} {[%emt 00:00:02]} 19. Bd2 {[%clk 00:15:36]}
Bf6 {[%clk 00:13:34]} {[%emt 00:00:06]} 20. f5 {[%clk 00:15:22]} {[%emt
00:00:20]} Ba6 {[%clk 00:13:30]} {[%emt 00:00:09]} 21. Qe2 {[%clk 00:15:17]}
{[%emt 00:00:09]} Qb8 {[%clk 00:13:16]} {[%emt 00:00:19]} 22. Rb1 {[%clk
00:15:11]} {[%emt 00:00:11]} Qa7 {[%clk 00:13:19]} {[%emt 00:00:02]} 23. Be3
{[%clk 00:15:12]} {[%emt 00:00:04]} Rb8 {[%clk 00:13:13]} {[%emt 00:00:11]} 24.
Rxb8+ {[%clk 00:14:48]} {[%emt 00:00:30]} Qxb8 {[%clk 00:13:17]} {[%emt
00:00:01]} 25. Bxc5 {[%clk 00:14:50]} dxc5 {[%clk 00:13:20]} {[%emt 00:00:03]}
26. fxg6 {[%clk 00:14:54]} {[%emt 00:00:02]} hxg6 {[%clk 00:13:20]} {[%emt
00:00:04]} 27. h4 {[%clk 00:14:59]} {[%emt 00:00:01]} Qb4 {[%clk 00:13:10]}
{[%emt 00:00:15]} 28. Bd3 {[%clk 00:15:03]} {[%emt 00:00:01]} Qxa5 {[%clk
00:13:11]} {[%emt 00:00:04]} 29. h5 {[%clk 00:15:07]} Qa1+ {[%clk 00:12:44]}
{[%emt 00:00:33]} 30. Kh2 {[%clk 00:15:11]} Qc1 {[%clk 00:11:46]} {[%emt
00:01:02]} 31. hxg6 {[%clk 00:15:07]} {[%emt 00:00:10]} fxg6 {[%clk 00:11:39]}
{[%emt 00:00:12]} 32. Qe6+ {[%clk 00:15:11]} {[%emt 00:00:02]} Kg7 {[%clk
00:11:36]} {[%emt 00:00:07]} 33. Qxa6 {[%clk 00:14:55]} {[%emt 00:00:21]} Qf4+
{[%clk 00:11:30]} {[%emt 00:00:11]} 34. Kh3 {[%clk 00:14:47]} {[%emt 00:00:13]}
Qh6+ {[%clk 00:10:29]} {[%emt 00:01:05]} 35. Kg3 {[%clk 00:14:50]} {[%emt
00:00:02]} Qe3 {[%clk 00:10:29]} {[%emt 00:00:05]} 36. Bb1 {[%clk 00:13:39]}
{[%emt 00:01:17]} Be5+ {[%clk 00:09:54]} {[%emt 00:00:40]} 37. Kh3 {[%clk
00:13:44]} Qh6+ {[%clk 00:09:48]} {[%emt 00:00:11]} 38. Nh4 {[%clk 00:13:48]}
Qe3+ {[%clk 00:09:49]} {[%emt 00:00:04]} 39. Nf3 {[%clk 00:15:05]} {[%emt
00:00:01]} 1/2-1/2

[Event "Rapid Tournament (RAP)"]
[Site "Biel, Switzerland"]
[Date "2026.07.12"]
[Round "8.22"]
[White "Lang, Fabian"]
[Black "Menzi, Jonas"]
[Result "0-1"]
[TimeControl "15 + 5"]
[WhiteTitle "-"]
[BlackTitle "-"]
[WhiteFideId "1310160"]
[BlackFideId "1345133"]
[WhiteElo "1900"]
[BlackElo "2114"]

1. d4 {[%clk 00:15:07]} {[%emt 00:00:02]} Nf6 {[%clk 00:15:09]} {[%emt
00:00:02]} 2. Nf3 {[%clk 00:15:11]} g6 {[%clk 00:15:05]} {[%emt 00:00:10]} 3.
g3 {[%clk 00:15:12]} {[%emt 00:00:02]} Bg7 {[%clk 00:15:06]} {[%emt 00:00:04]}
4. Bg2 {[%clk 00:15:16]} {[%emt 00:00:01]} d5 {[%clk 00:15:10]} {[%emt
00:00:02]} 5. O-O {[%clk 00:14:53]} {[%emt 00:00:27]} O-O {[%clk 00:15:12]}
{[%emt 00:00:03]} 6. Nbd2 {[%clk 00:14:57]} {[%emt 00:00:01]} c5 {[%clk
00:14:09]} {[%emt 00:01:09]} 7. dxc5 {[%clk 00:14:59]} {[%emt 00:00:03]} Na6
{[%clk 00:14:13]} {[%emt 00:00:01]} 8. Nb3 {[%clk 00:15:00]} {[%emt 00:00:03]}
Ne4 {[%clk 00:14:17]} {[%emt 00:00:01]} 9. c3 {[%clk 00:13:57]} {[%emt
00:01:08]} Naxc5 {[%clk 00:14:14]} {[%emt 00:00:08]} 10. Be3 {[%clk 00:13:20]}
{[%emt 00:00:42]} Na4 {[%clk 00:13:55]} {[%emt 00:00:24]} 11. Qc2 {[%clk
00:12:02]} {[%emt 00:01:23]} e5 {[%clk 00:13:35]} {[%emt 00:00:25]} 12. Rfd1
{[%clk 00:11:41]} {[%emt 00:00:26]} Be6 {[%clk 00:11:37]} {[%emt 00:02:03]} 13.
Nbd2 {[%clk 00:08:56]} {[%emt 00:02:50]} Nxd2 {[%clk 00:11:16]} {[%emt
00:00:26]} 14. Rxd2 {[%clk 00:07:57]} {[%emt 00:01:05]} Nb6 {[%clk 00:10:50]}
{[%emt 00:00:31]} 15. Bxb6 {[%clk 00:07:17]} {[%emt 00:00:45]} Qxb6 {[%clk
00:10:33]} {[%emt 00:00:21]} 16. Ng5 {[%clk 00:04:41]} {[%emt 00:02:41]} Bf5
{[%clk 00:10:25]} {[%emt 00:00:12]} 17. e4 {[%clk 00:04:40]} {[%emt 00:00:07]}
dxe4 {[%clk 00:10:25]} {[%emt 00:00:06]} 18. Nxe4 {[%clk 00:04:19]} {[%emt
00:00:25]} Rfd8 {[%clk 00:10:11]} {[%emt 00:00:19]} 19. Rad1 {[%clk 00:04:10]}
{[%emt 00:00:14]} Bh6 {[%clk 00:09:45]} {[%emt 00:00:31]} 20. Rxd8+ {[%clk
00:04:00]} {[%emt 00:00:15]} Rxd8 {[%clk 00:09:49]} 21. Rxd8+ {[%clk 00:04:00]}
{[%emt 00:00:06]} Qxd8 {[%clk 00:09:53]} {[%emt 00:00:01]} 22. Qb3 {[%clk
00:03:41]} {[%emt 00:00:24]} Qd3 {[%clk 00:06:58]} {[%emt 00:03:00]} 23. Nf6+
{[%clk 00:00:17]} {[%emt 00:03:29]} Kg7 {[%clk 00:06:57]} {[%emt 00:00:05]} 24.
Nd5 {[%clk 00:00:09]} {[%emt 00:00:13]} Qb1+ {[%clk 00:06:37]} {[%emt
00:00:25]} 25. Bf1 {[%clk 00:00:09]} {[%emt 00:00:05]} Bd3 {[%clk 00:06:40]}
{[%emt 00:00:01]} 26. Ne3 {[%clk 00:00:06]} {[%emt 00:00:08]} Bxe3 {[%clk
00:06:44]} {[%emt 00:00:03]} 27. Qc2 {[%emt 00:00:06]} 0-1

[Event "Rapid Tournament (RAP)"]
[Site "Biel, Switzerland"]
[Date "2026.07.12"]
[Round "8.23"]
[White "Trubini, Timon"]
[Black "El-Mais, Ibaa"]
[Result "0-1"]
[TimeControl "15 + 5"]
[WhiteTitle "-"]
[BlackTitle "-"]
[WhiteFideId "1347799"]
[BlackFideId "1312715"]
[WhiteElo "1896"]
[BlackElo "2100"]

1. e4 {[%clk 00:15:09]} {[%emt 00:01:43]} c6 {[%clk 00:15:06]} {[%emt
00:00:04]} 2. d4 {[%clk 00:15:12]} {[%emt 00:00:04]} d5 {[%clk 00:15:10]} 3.
exd5 {[%clk 00:15:14]} {[%emt 00:00:03]} cxd5 {[%clk 00:15:13]} {[%emt
00:00:02]} 4. Bd3 {[%clk 00:15:17]} {[%emt 00:00:02]} Nc6 {[%clk 00:15:16]}
{[%emt 00:00:02]} 5. c3 {[%clk 00:15:15]} {[%emt 00:00:07]} Qc7 {[%clk
00:15:03]} {[%emt 00:00:17]} 6. Qf3 {[%clk 00:14:35]} {[%emt 00:00:44]} Nf6
{[%clk 00:14:54]} {[%emt 00:00:15]} 7. Bf4 {[%clk 00:14:32]} {[%emt 00:00:08]}
Qb6 {[%clk 00:14:39]} {[%emt 00:00:22]} 8. Qe2 {[%clk 00:14:18]} {[%emt
00:00:17]} Bg4 {[%clk 00:14:36]} {[%emt 00:00:08]} 9. f3 {[%clk 00:14:09]}
{[%emt 00:00:15]} Bh5 {[%clk 00:14:39]} {[%emt 00:00:01]} 10. Na3 {[%emt
00:00:50]} a6 {[%clk 00:14:35]} 11. b4 {[%clk 00:12:19]} {[%emt 00:01:20]} Nxd4
{[%clk 00:13:41]} {[%emt 00:00:58]} 12. Qf2 {[%clk 00:10:47]} {[%emt 00:01:37]}
Qe6+ {[%clk 00:13:44]} {[%emt 00:00:02]} 13. Kd2 {[%clk 00:09:46]} {[%emt
00:01:07]} Nc6 {[%clk 00:12:51]} {[%emt 00:00:57]} 14. b5 {[%clk 00:08:21]}
{[%emt 00:01:31]} Ne5 {[%clk 00:12:46]} {[%emt 00:00:11]} 15. Bxe5 {[%clk
00:07:05]} {[%emt 00:01:20]} Qxe5 {[%clk 00:12:49]} {[%emt 00:00:01]} 16. Qb6
{[%clk 00:07:02]} {[%emt 00:00:08]} Rc8 {[%clk 00:11:52]} {[%emt 00:01:03]} 17.
Ne2 {[%clk 00:06:21]} {[%emt 00:00:46]} a5 {[%clk 00:06:37]} {[%emt 00:05:21]}
18. Qxb7 {[%clk 00:04:50]} {[%emt 00:01:35]} Rb8 {[%clk 00:06:28]} {[%emt
00:00:13]} 19. Qc6+ {[%clk 00:04:41]} {[%emt 00:00:14]} Nd7 {[%clk 00:06:32]}
{[%emt 00:00:02]} 20. b6 {[%clk 00:03:51]} {[%emt 00:00:56]} e6 {[%clk
00:05:46]} {[%emt 00:00:51]} 21. Nb5 {[%clk 00:03:45]} {[%emt 00:00:11]} Rxb6
{[%clk 00:05:07]} {[%emt 00:00:43]} 22. Qc8+ {[%clk 00:03:15]} {[%emt
00:00:35]} Ke7 {[%clk 00:05:06]} {[%emt 00:00:06]} 23. Ned4 {[%clk 00:02:25]}
{[%emt 00:00:55]} Qg5+ {[%clk 00:04:16]} {[%emt 00:00:56]} 24. Kc2 {[%clk
00:02:00]} {[%emt 00:00:30]} Qxg2+ {[%clk 00:04:11]} {[%emt 00:00:09]} 25. Kb3
{[%clk 00:01:34]} {[%emt 00:00:31]} a4+ {[%clk 00:03:33]} {[%emt 00:00:43]} 26.
Kxa4 {[%clk 00:01:15]} {[%emt 00:00:24]} Qb2 {[%clk 00:02:30]} {[%emt
00:01:07]} 27. Nc6+ {[%clk 00:01:06]} {[%emt 00:00:15]} Rxc6 {[%clk 00:01:44]}
{[%emt 00:00:51]} 28. Qxc6 {[%clk 00:01:10]} {[%emt 00:00:01]} Ne5 {[%clk
00:01:24]} {[%emt 00:00:25]} 29. Qc7+ {[%clk 00:00:30]} {[%emt 00:00:45]} Kf6
{[%clk 00:01:28]} {[%emt 00:00:01]} 30. Be2 {[%clk 00:00:23]} {[%emt 00:00:12]}
Qxe2 {[%clk 00:01:13]} {[%emt 00:00:20]} 31. Qd8+ {[%clk 00:00:24]} {[%emt
00:00:04]} Be7 {[%clk 00:00:48]} {[%emt 00:00:30]} 32. Qxh8 {[%clk 00:00:26]}
{[%emt 00:00:03]} Nc6 {[%clk 00:00:22]} {[%emt 00:00:30]} 33. Kb3 {[%emt
00:00:27]} Bg6 {[%clk 00:00:14]} {[%emt 00:00:12]} 34. Qc8 {[%clk 00:00:08]}
{[%emt 00:00:03]} Qc2# {[%clk 00:00:14]} {[%emt 00:00:04]} 0-1